fUST/lending_fUST_20260114
["ID","MTS","AMOUNT","RATE_DAILY","PERIOD"]
[401688648,1768332942391,151.0,0.000132,2]
[401688649,1768332942745,151.0,0.000129,2]
[401688650,1768332943123,151.0,0.000126,2]
[401688651,1768332943524,151.0,0.000123,2]
[401688652,1768332943894,151.0,0.000119,2]
[401688653,1768332944253,151.0,0.000116,2]
[401688654,1768332944669,151.0,0.000113,2]
[401688655,1768332962275,300.0,0.00013598,2]
[401688656,1768332986039,500.0,0.00013598,2]
[401688657,1768332986072,500.0,0.00013598,2]
[401688658,1768332986104,500.0,0.00013598,2]
[401688659,1768332986135,500.0,0.00013598,2]
[401688660,1768332986167,500.0,0.00013598,2]
[401688661,1768332986199,500.0,0.00013598,2]
[401688662,1768332986232,500.0,0.00013598,2]
[401688663,1768332986265,90.31270823,0.00013598,2]
[401688664,1768332986289,409.68729177,0.00013598,2]
[401688665,1768332986324,500.0,0.00013598,2]
[401688666,1768332986356,500.0,0.00013598,2]
[401688667,1768332986388,500.0,0.00013598,2]
[401688668,1768332986419,500.0,0.00013598,2]
[401688669,1768332986451,500.0,0.00013598,2]
[401688670,1768332986483,500.0,0.00013598,2]
[401688671,1768332986526,500.0,0.00013598,2]
[401688672,1768332986559,500.0,0.00013598,2]
[401688673,1768332986591,500.0,0.00013598,2]
[401688674,1768332986622,500.0,0.00013598,2]
[401688675,1768332986655,500.0,0.00013598,2]
[401688676,1768332986686,500.0,0.00013598,2]
[401688677,1768332986717,419.13474068,0.00013598,2]
[401688678,1768332986754,500.0,0.00013598,2]
[401688679,1768332986791,500.0,0.00013598,2]
[401688680,1768332986826,500.0,0.00013598,2]
[401688681,1768332986869,500.0,0.00013598,2]
[401688682,1768332986901,500.0,0.00013598,2]
[401688683,1768332986936,500.0,0.00013598,2]
[401688684,1768332986967,171.18796755,0.00013598,2]
[401688685,1768332986991,328.81203245,0.00013598,2]
[401688686,1768332987404,1033.96220979,0.00013598,2]
[401688687,1768333013472,500.0,0.00013598,2]
[401688688,1768333013526,500.0,0.00013598,2]
[401688689,1768333013561,500.0,0.00013598,2]
[401688690,1768333013596,500.0,0.00013598,2]
[401688691,1768333013636,500.0,0.00013598,2]
[401688692,1768333013672,500.0,0.00013598,2]
[401688693,1768333013703,500.0,0.00013598,2]
[401688694,1768333013739,500.0,0.00013598,2]
[401688695,1768333013771,500.0,0.00013598,2]
[401688696,1768333013803,500.0,0.00013598,2]
[401688697,1768333013836,500.0,0.00013598,2]
[401688698,1768333013867,500.0,0.00013598,2]
[401688699,1768333013898,500.0,0.00013598,2]
[401688700,1768333013930,500.0,0.00013598,2]
[401688701,1768333014084,500.0,0.00013598,2]
[401688702,1768333014129,500.0,0.00013598,2]
[401688703,1768333014164,500.0,0.00013598,2]
[401688704,1768333014196,137.23575776,0.00013598,2]
[401688705,1768333014219,362.76424224,0.00013598,2]
[401688706,1768333014253,500.0,0.00013598,2]
[401688707,1768333014284,500.0,0.00013598,2]
[401688708,1768333014314,500.0,0.00013598,2]
[401688709,1768333014345,500.0,0.00013598,2]
[401688710,1768333014377,500.0,0.00013598,2]
[401688711,1768333014410,500.0,0.00013598,2]
[401688712,1768333014441,500.0,0.00013598,2]
[401688713,1768333014471,500.0,0.00013598,2]
[401688714,1768333014502,500.0,0.00013598,2]
[401688715,1768333014532,500.0,0.00013598,2]
[401688716,1768333014566,500.0,0.00013598,2]
[401688717,1768333014596,500.0,0.00013598,2]
[401688718,1768333014628,500.0,0.00013598,2]
[401688719,1768333014663,500.0,0.00013598,2]
[401688720,1768333014723,500.0,0.00013598,2]
[401688721,1768333014764,500.0,0.00013598,2]
[401688722,1768333014801,500.0,0.00013598,2]
[401688723,1768333014841,500.0,0.00013598,2]
[401688724,1768333014889,500.0,0.00013598,2]
[401688725,1768333014928,137.24575776,0.00013598,2]
[401688726,1768333014955,362.75424224,0.00013598,2]
[401688727,1768333014987,500.0,0.00013598,2]
[401688728,1768333015020,500.0,0.00013598,2]
[401688729,1768333015054,500.0,0.00013598,2]
[401688730,1768333015262,500.0,0.00013598,2]
[401688731,1768333015303,500.0,0.00013598,2]
[401688732,1768333015336,500.0,0.00013598,2]
[401688733,1768333015375,500.0,0.00013598,2]
[401688734,1768333015414,500.0,0.00013598,2]
[401688735,1768333015447,500.0,0.00013598,2]
[401688736,1768333015479,500.0,0.00013598,2]
[401688737,1768333015527,500.0,0.00013598,2]
[401688738,1768333015566,500.0,0.00013598,2]
[401688740,1768333015603,576.74705085,0.00013598,2]
[401688741,1768333015640,500.0,0.00013598,2]
[401688742,1768333015673,500.0,0.00013598,2]
[401688743,1768333022624,300.0,0.00013598,2]
[401688744,1768333023253,500.0,0.00013273,2]
[401688745,1768333027298,1579.9418988,0.00013499,2]
[401688746,1768333027572,500.0,0.00013598,2]
[401688747,1768333027604,500.0,0.00013598,2]
[401688748,1768333027637,500.0,0.00013598,2]
[401688749,1768333027680,500.0,0.00013598,2]
[401688750,1768333027711,500.0,0.00013598,2]
[401688751,1768333027750,500.0,0.00013598,2]
[401688752,1768333027783,500.0,0.00013598,2]
[401688753,1768333027815,500.0,0.00013598,2]
[401688754,1768333027848,500.0,0.00013598,2]
[401688755,1768333027884,500.0,0.00013598,2]
[401688756,1768333027915,500.0,0.00013598,2]
[401688757,1768333027963,500.0,0.00013598,2]
[401688758,1768333027993,500.0,0.00013598,2]
[401688759,1768333028024,500.0,0.00013598,2]
[401688760,1768333028055,500.0,0.00013598,2]
[401688761,1768333028096,120.0681012,0.00013598,2]
[401688762,1768333035892,153.06,7.393e-05,2]
[401688763,1768333036556,178.57,7.677e-05,2]
[401688764,1768333036985,204.08,7.961e-05,2]
[401688765,1768333037386,229.59,8.246e-05,2]
[401688766,1768333037778,255.1,8.53e-05,2]
[401688767,1768333083972,359.38,9.99e-05,2]
[401688768,1768333084269,359.38,9.99e-05,2]
[401688769,1768333084671,359.38,9.99e-05,2]
[401688770,1768333104591,160.13,8.038e-05,2]
[401688771,1768333104999,180.14,8.325e-05,2]
[401688772,1768333105423,182.42003858,8.612e-05,2]
[401688773,1768333288153,-664.77698397,0.00012597,2]
[401688774,1768333294126,-178.7776414,0.00012597,2]
[401688775,1768333295681,-155.1417657,0.00012597,2]
[401688776,1768333297540,-304.59,0.00012597,2]
[401688777,1768333299117,-184.70262868,0.00012597,2]
[401688782,1768333417790,-144.64098025,0.00012597,2]
[401688783,1768333417820,-341.44067201,0.00012935,2]
[401688784,1768333417850,-300.0,0.00013272,2]
[401688785,1768333442235,300.0,0.00013272,2]
[401688792,1768333481069,500.0,0.00013272,2]
[401688793,1768333481103,500.0,0.00013272,2]
[401688794,1768333481135,500.0,0.00013272,2]
[401688795,1768333481172,500.0,0.00013272,2]
[401688796,1768333481204,500.0,0.00013272,2]
[401688797,1768333481235,500.0,0.00013272,2]
[401688798,1768333481271,500.0,0.00013272,2]
[401688799,1768333481307,500.0,0.00013272,2]
[401688800,1768333481340,500.0,0.00013272,2]
[401688801,1768333481373,500.0,0.00013272,2]
[401688802,1768333481409,500.0,0.00013272,2]
[401688803,1768333481440,500.0,0.00013272,2]
[401688804,1768333481471,500.0,0.00013272,2]
[401688805,1768333481511,500.0,0.00013272,2]
[401688806,1768333481545,500.0,0.00013272,2]
[401688807,1768333481576,500.0,0.00013272,2]
[401688808,1768333481612,127.84669548,0.00013272,2]
[401688809,1768333481635,372.15330452,0.00013272,2]
[401688810,1768333481670,500.0,0.00013272,2]
[401688811,1768333481704,500.0,0.00013272,2]
[401688812,1768333481736,500.0,0.00013272,2]
[401688813,1768333481767,500.0,0.00013272,2]
[401688814,1768333481798,500.0,0.00013272,2]
[401688815,1768333481834,391.91347407,0.00013272,2]
[401688816,1768333481868,500.0,0.00013272,2]
[401688817,1768333481901,500.0,0.00013272,2]
[401688818,1768333481935,500.0,0.00013272,2]
[401688819,1768333481967,500.0,0.00013272,2]
[401688820,1768333482000,500.0,0.00013272,2]
[401688821,1768333482033,500.0,0.00013272,2]
[401688822,1768333482063,500.0,0.00013272,2]
[401688823,1768333482099,500.0,0.00013272,2]
[401688824,1768333482131,500.0,0.00013272,2]
[401688825,1768333482161,607.21631558,0.00013272,2]
[401688826,1768333482193,500.0,0.00013272,2]
[401688827,1768333482229,500.0,0.00013272,2]
[401688828,1768333482262,500.0,0.00013272,2]
[401688829,1768333482295,128.72690583,0.00013272,2]
[401688830,1768333482822,-371.27309417,0.00013272,2]
[401688831,1768333482846,-78.10835662,0.00013272,2]
[401688832,1768333488638,50000.0,0.0002999,120]
[401688833,1768333490864,-421.89164338,0.00013272,2]
[401688834,1768333490895,-500.0,0.00013272,2]
[401688835,1768333490927,-500.0,0.00013272,2]
[401688836,1768333490958,-500.0,0.00013272,2]
[401688837,1768333490987,-500.0,0.00013272,2]
[401688838,1768333491017,-500.0,0.00013272,2]
[401688839,1768333491045,-500.0,0.00013272,2]
[401688840,1768333491075,-500.0,0.00013272,2]
[401688841,1768333491104,-500.0,0.00013272,2]
[401688842,1768333491135,-500.0,0.00013272,2]
[401688843,1768333495054,-315.29737132,0.00012329,2]
[401688844,1768333501449,157.65,6.934e-05,2]
[401688845,1768333501810,183.93,7.2e-05,2]
[401688846,1768333502212,210.2,7.467e-05,2]
[401688847,1768333502637,236.48,7.734e-05,2]
[401688848,1768333502684,-170.66042713,0.00012329,2]
[401688849,1768333503047,262.75,8.001e-05,2]
[401688850,1768333535217,169.5764781,0.00030136,120]
[401688865,1768333648088,-196.49220155,0.00012329,2]
[401688866,1768333648110,-55.63485925,0.00012751,2]
[401688868,1768333653729,-156.33034165,0.00012751,2]
[401688869,1768333695693,2777.59,0.00030137,120]
[401688870,1768333702759,2777.59,0.00030137,120]
[401688871,1768333710809,1388.8,0.00030137,120]
[401688872,1768333726967,2083.19,0.00030137,120]
[401688873,1768333745539,2083.0,0.00030137,120]
[401688969,1768333813067,-129.11651236,0.00012751,2]
[401688970,1768333813088,-109.97182167,0.00012751,2]
[401688971,1768333816089,-226.41866267,0.00012751,2]
[401688992,1768333832711,-263.60951566,0.00012751,2]
[401688993,1768333832721,-143.4211889,0.00013269,2]
[401688994,1768333832732,-641.5788111,0.00013269,2]
[401688995,1768333832743,-500.0,0.00013269,2]
[401688996,1768333832753,-500.0,0.00013269,2]
[401688998,1768333832762,-154.65705267,0.00013269,2]
[401688999,1768333832773,-234.13514618,0.00013269,2]
[401689000,1768333832782,-500.0,0.00013269,2]
[401689001,1768333832791,-500.0,0.00013269,2]
[401689002,1768333832800,-500.0,0.00013269,2]
[401689003,1768333832809,-500.0,0.00013269,2]
[401689004,1768333832819,-500.0,0.00013269,2]
[401689005,1768333832828,-500.0,0.00013269,2]
[401689006,1768333832837,-500.0,0.00013269,2]
[401689007,1768333832847,-364.71891276,0.00013269,2]
[401689008,1768333832856,-500.0,0.00013269,2]
[401689009,1768333832865,-500.0,0.00013269,2]
[401689010,1768333832875,-500.0,0.00013269,2]
[401689011,1768333833027,-500.0,0.00013269,2]
[401689012,1768333833037,-500.0,0.00013269,2]
[401689013,1768333833046,-500.0,0.00013269,2]
[401689014,1768333833056,-500.0,0.00013269,2]
[401689015,1768333833066,-500.0,0.00013269,2]
[401689016,1768333833076,-500.0,0.00013269,2]
[401689017,1768333833085,-500.0,0.00013269,2]
[401689018,1768333833094,-500.0,0.00013269,2]
[401689019,1768333833103,-500.0,0.00013269,2]
[401689020,1768333833112,-394.72472282,0.00013269,2]
[401689021,1768333833120,-500.0,0.00013269,2]
[401689022,1768333833130,-500.0,0.00013269,2]
[401689024,1768333833139,-500.0,0.00013269,2]
[401689025,1768333833149,-500.0,0.00013269,2]
[401689026,1768333833158,-500.0,0.00013269,2]
[401689027,1768333833167,-500.0,0.00013269,2]
[401689028,1768333833176,-500.0,0.00013269,2]
[401689029,1768333833185,-500.0,0.00013269,2]
[401689030,1768333833195,-500.0,0.00013269,2]
[401689031,1768333833204,-500.0,0.00013269,2]
[401689032,1768333833215,-500.0,0.00013269,2]
[401689033,1768333833224,-500.0,0.00013269,2]
[401689034,1768333833233,-485.00767166,0.00013269,2]
[401689035,1768333833242,-300.0,0.0001327,2]
[401689036,1768333833251,-300.0,0.0001327,2]
[401689037,1768333833260,-300.0,0.0001327,2]
[401689038,1768333833269,-343.06,0.0001327,2]
[401689039,1768333833279,-50000.0,0.0001327,2]
[401689040,1768333833288,-300.0,0.00013271,2]
[401689041,1768333833298,-500.0,0.00013273,2]
[401689042,1768333833307,-500.0,0.00013273,2]
[401689044,1768333833317,-165.67004475,0.00013273,2]
[401689045,1768333833327,-341.44701077,0.00013273,2]
[401689046,1768333833337,-500.0,0.00013273,2]
[401689047,1768333833346,-283.60096806,0.00013273,2]
[401689048,1768333833355,-500.0,0.00013273,2]
[401689049,1768333833365,-500.0,0.00013273,2]
[401689050,1768333833375,-500.0,0.00013273,2]
[401689051,1768333833384,-157.21651856,0.00013273,2]
[401689052,1768333833393,-264.41818772,0.00013273,2]
[401689053,1768333833402,-500.0,0.00013273,2]
[401689054,1768333833411,-548.235786,0.00013273,2]
[401689055,1768333833421,-500.07311725,0.00013273,2]
[401689056,1768333833430,-500.0,0.00013273,2]
[401689057,1768333833443,-210.86284677,0.00013273,2]
[401689058,1768333833453,-500.0,0.00013273,2]
[401689059,1768333833462,-500.0,0.00013273,2]
[401689060,1768333833471,-156.33034165,0.00013273,2]
[401689061,1768333833480,-500.0,0.00013273,2]
[401689062,1768333833489,-171.74027593,0.00013273,2]
[401689063,1768333833498,-500.0,0.00013273,2]
[401689064,1768333833507,-500.0,0.00013273,2]
[401689065,1768333833517,-500.0,0.00013273,2]
[401689066,1768333833526,-500.0,0.00013273,2]
[401689067,1768333833535,-500.0,0.00013273,2]
[401689068,1768333833545,-304.59,0.00013273,2]
[401689069,1768333833554,-181.32801356,0.00013327,2]
[401689070,1768333833564,-2230.315306,0.00013403,2]
[401689071,1768333833573,-311.85701,0.00013403,2]
[401689072,1768333833586,-2030.296672,0.00013403,2]
[401689074,1768333833595,-343.06,0.00013544,2]
[401689075,1768333833603,-500.0,0.00013547,2]
[401689076,1768333833612,-151.0,0.00013599,2]
[401689077,1768333833621,-247.0,0.000136,2]
[401689078,1768333833631,-498.29,0.000136,2]
[401689079,1768333833640,-2761.9422857,0.00013614,2]
[401689080,1768333833649,-1263.95351904,0.00013644,2]
[401689081,1768333833658,-300.0,0.00013673,2]
[401689082,1768333833667,-250.0,0.00013682,2]
[401689083,1768333833676,-500.0,0.00013697,2]
[401689084,1768333833685,-500.0,0.00013697,2]
[401689085,1768333833694,-500.0,0.00013697,2]
[401689086,1768333833706,-500.0,0.00013697,2]
[401689087,1768333833716,-184.14875804,0.00013697,2]
[401689088,1768333833725,-500.0,0.00013697,2]
[401689089,1768333833734,-500.0,0.00013697,2]
[401689090,1768333833745,-500.0,0.00013697,2]
[401689091,1768333833754,-500.0,0.00013697,2]
[401689092,1768333833763,-500.0,0.00013697,2]
[401689093,1768333833773,-500.0,0.00013697,2]
[401689094,1768333833782,-500.0,0.00013697,2]
[401689095,1768333833791,-500.0,0.00013697,2]
[401689096,1768333833800,-500.0,0.00013697,2]
[401689097,1768333833808,-177.02294324,0.00013697,2]
[401689098,1768333833821,-322.97705676,0.00013697,2]
[401689099,1768333833831,-500.0,0.00013697,2]
[401689100,1768333833840,-500.0,0.00013697,2]
[401689101,1768333833850,-825.56428216,0.00013697,2]
[401689102,1768333833859,-825.56428216,0.00013697,2]
[401689103,1768333833868,-825.56428216,0.00013697,2]
[401689104,1768333833878,-825.56428216,0.00013697,2]
[401689105,1768333833887,-825.56428216,0.00013697,2]
[401689106,1768333833896,-825.56428216,0.00013697,2]
[401689107,1768333833906,-825.56428216,0.00013697,2]
[401689108,1768333833916,-825.56428216,0.00013697,2]
[401689109,1768333833925,-825.56428216,0.00013697,2]
[401689110,1768333833937,-825.56428216,0.00013697,2]
[401689111,1768333833946,-500.0,0.00013698,2]
[401689112,1768333833956,-500.0,0.00013698,2]
[401689113,1768333833966,-500.0,0.00013698,2]
[401689114,1768333833975,-500.0,0.00013698,2]
[401689115,1768333833984,-305.00871305,0.00013698,2]
[401689116,1768333833996,-194.99128695,0.00013698,2]
[401689117,1768333834005,-500.0,0.00013698,2]
[401689118,1768333834015,-444.05660801,0.00013698,2]
[401689119,1768333834038,-500.0,0.00013269,2]
[401689120,1768333834047,-55.94339199,0.00013698,2]
[401689121,1768333834056,-500.0,0.00013698,2]
[401689122,1768333834067,-500.0,0.00013698,2]
[401689123,1768333834078,-500.0,0.00013698,2]
[401689124,1768333834087,-500.0,0.00013698,2]
[401689125,1768333834096,-500.0,0.00013698,2]
[401689126,1768333834106,-500.0,0.00013698,2]
[401689127,1768333834115,-237.5261309,0.00013698,2]
[401689128,1768333834127,-262.4738691,0.00013698,2]
[401689129,1768333834137,-500.0,0.00013698,2]
[401689130,1768333834146,-500.0,0.00013698,2]
[401689131,1768333834156,-500.0,0.00013698,2]
[401689132,1768333834165,-540.43466615,0.00013698,2]
[401689133,1768333834175,-500.0,0.00013698,2]
[401689134,1768333834184,-512.05432454,0.00013698,2]
[401689135,1768333834193,-500.0,0.00013698,2]
[401689136,1768333834201,-500.0,0.00013698,2]
[401689137,1768333834211,-497.46219422,0.00013698,2]
[401689138,1768333834220,-937.65,0.00013698,2]
[401689139,1768333834230,-937.65,0.00013698,2]
[401689140,1768333834239,-937.65,0.00013698,2]
[401689141,1768333834249,-937.65,0.00013698,2]
[401689142,1768333834261,-937.65,0.00013698,2]
[401689143,1768333834271,-119.23520335,0.00013698,2]
[401689144,1768333834282,-818.41479665,0.00013698,2]
[401689145,1768333834291,-181.58520335,0.00013698,2]
[401689146,1768333835047,-756.06479665,0.00013698,2]
[401689147,1768333835086,-937.65,0.00013698,2]
[401689148,1768333835125,-937.65,0.00013698,2]
[401689149,1768333835163,-937.65,0.00013698,2]
[401689150,1768333835199,-937.65,0.00013698,2]
[401689151,1768333835234,-49.0304067,0.00013698,2]
[401689152,1768333837941,-888.6195933,0.00013698,2]
[401689153,1768333837972,-937.65,0.00013698,2]
[401689155,1768333838003,-937.65,0.00013698,2]
[401689157,1768333838038,-937.65,0.00013698,2]
[401689158,1768333838077,-937.65,0.00013698,2]
[401689403,1768333840891,-3e-08,0.00013698,2]
[401689406,1768333840909,-937.64999997,0.00013698,2]
[401689408,1768333840918,-937.65,0.00013698,2]
[401689410,1768333840928,-937.65,0.00013698,2]
[401689412,1768333840937,-937.65,0.00013698,2]
[401689414,1768333840947,-937.65,0.00013698,2]
[401689416,1768333840956,-937.65,0.00013698,2]
[401689418,1768333840965,-937.65,0.00013698,2]
[401689420,1768333840974,-937.8,0.00013698,2]
[401689422,1768333840983,-151.0,0.00013698,2]
[401689424,1768333840993,-500.0,0.00013698,2]
[401689426,1768333841002,-500.0,0.00013698,2]
[401689428,1768333841012,-629.11039436,0.00013698,2]
[401689430,1768333841021,-500.0,0.00013698,2]
[401689432,1768333841031,-500.0,0.00013698,2]
[401689434,1768333841039,-500.0,0.00013698,2]
[401689436,1768333841049,-500.0,0.00013698,2]
[401689438,1768333841058,-500.0,0.00013698,2]
[401689440,1768333841068,-500.0,0.00013698,2]
[401689442,1768333841077,-500.0,0.00013698,2]
[401689444,1768333841086,-500.0,0.00013698,2]
[401689446,1768333841095,-500.0,0.00013698,2]
[401689448,1768333841105,-462.5449314,0.00013698,2]
[401689453,1768333841142,-37.4550686,0.00013698,2]
[401689457,1768333841172,-500.0,0.00013698,2]
[401689461,1768333841201,-500.0,0.00013698,2]
[401689465,1768333841233,-500.0,0.00013698,2]
[401689469,1768333841260,-500.0,0.00013698,2]
[401689474,1768333841288,-500.0,0.00013698,2]
[401689478,1768333841318,-500.0,0.00013698,2]
[401689482,1768333841347,-186.7,0.00013698,2]
[401689486,1768333841375,-1125.14,0.00013698,2]
[401689490,1768333841404,-176.2798628,0.00013698,2]
[401689758,1768333844017,-948.8601372,0.00013698,2]
[401689762,1768333844047,-1125.14,0.00013698,2]
[401689766,1768333844076,-1125.14,0.00013698,2]
[401689770,1768333844103,-1125.14,0.00013698,2]
[401689774,1768333844133,-226.3097256,0.00013698,2]
[401690040,1768333846689,-898.8302744,0.00013698,2]
[401690043,1768333846700,-1125.14,0.00013698,2]
[401690045,1768333846715,-1125.14,0.00013698,2]
[401690047,1768333846724,-1125.14,0.00013698,2]
[401690049,1768333846734,-1125.14,0.00013698,2]
[401690051,1768333846743,-1125.14,0.00013698,2]
[401690053,1768333846754,-1125.14,0.00013698,2]
[401690055,1768333846763,-1125.14,0.00013698,2]
[401690057,1768333846773,-163.77639227,0.00013698,2]
[401690059,1768333846785,-961.36360773,0.00013698,2]
[401690061,1768333846794,-194.22969631,0.00013698,2]
[401692443,1768333933162,-617.3028231,0.00012691,2]
[401692444,1768333935141,-300.0,0.00012691,2]
[401692445,1768333956313,-81.6971769,0.00012691,2]
[401692446,1768333956346,-500.0,0.00013269,2]
[401692447,1768333956377,-500.0,0.00013269,2]
[401692448,1768333956408,-500.0,0.00013269,2]
[401692449,1768333956438,-500.0,0.00013269,2]
[401692450,1768333956469,-500.0,0.00013269,2]
[401692451,1768333956498,-394.72472282,0.00013269,2]
[401692452,1768333956527,-300.0,0.00013272,2]
[401692453,1768333956556,-607.39994123,0.00013273,2]
[401692454,1768333956584,-500.0,0.00013273,2]
[401692455,1768333956614,-344.17046968,0.00013273,2]
[401692456,1768333956643,-44.02537874,0.00013273,2]
[401692457,1768333962287,-360.56367353,0.0001298,2]
[401692458,1768333962316,-455.97462126,0.00013273,2]
[401692459,1768333962345,-500.0,0.00013273,2]
[401692460,1768333962374,-500.0,0.00013273,2]
[401692461,1768333962402,-237.315,0.00013273,2]
[401692462,1768333962430,-500.0,0.00013273,2]
[401692463,1768333962458,-734.81919264,0.00013598,2]
[401692464,1768333966357,156.87,6.87e-05,2]
[401692465,1768333966762,188.24,7.144e-05,2]
[401692466,1768333966977,-298.30615314,0.00012329,2]
[401692467,1768333967187,219.61,7.419e-05,2]
[401692468,1768333967606,250.99,7.694e-05,2]
[401692469,1768333968011,282.36,7.969e-05,2]
[401692470,1768333968296,-385.15384686,0.00012329,2]
[401692471,1768333968326,-3422.66502514,0.00013598,2]
[401692472,1768333968356,-300.0,0.00013673,2]
[401692473,1768333968387,-300.0,0.00013697,2]
[401692474,1768333968479,313.73,8.244e-05,2]
[401692475,1768333978207,-244.17186379,0.00012329,2]
[401692476,1768333982868,-163.30347598,0.00012329,2]
[401692477,1768333991604,-15.44466023,0.00012329,2]
[401692478,1768333991626,-200.23412137,0.00012329,2]
[401692479,1768333999927,-152.19587863,0.00012329,2]
[401692480,1768333999950,-33.69570559,0.00012329,2]
[401692481,1768334008108,-259.99429441,0.00012329,2]
[401692482,1768334008130,-240.00570559,0.00012329,2]
[401692500,1768334053165,-4.73429441,0.00012329,2]
[401692501,1768334053189,-203.95,0.00012329,2]
[401692502,1768334053211,-169.96,0.00012329,2]
[401692503,1768334053236,-121.35570559,0.00012329,2]
[401692504,1768334054591,-501.42350854,0.00012329,2]
[401692505,1768334056697,-224.35942418,0.00012329,2]
[401692511,1768334111507,-2.70136169,0.00012329,2]
[401692512,1768334111539,-1200.0,0.00012569,2]
[401692513,1768334111634,-5468.99470666,0.0001257,2]
[401692514,1768334111881,-10000.01,0.0001257,2]
[401692515,1768334114298,-10000.01,0.0001257,2]
[401692516,1768334143739,-163.04901972,0.00012329,2]
[401692518,1768334149918,-193.16145965,0.00012329,2]
[401692520,1768334152232,-219.38563284,0.00012329,2]
[401692521,1768334158851,-180.32183878,0.00012329,2]
[401692522,1768334165822,-130.17204901,0.00012329,2]
[401692523,1768334165844,-221.57,0.00012329,2]
[401692524,1768334165866,-37.52411623,0.00012329,2]
[401692525,1768334167835,-147.11588377,0.00012329,2]
[401692526,1768334167856,-129.82411623,0.00012329,2]
[401692527,1768334168103,151.03,7.083e-05,2]
[401692528,1768334168499,188.79,7.378e-05,2]
[401692529,1768334168891,226.55,7.673e-05,2]
[401692530,1768334169317,264.31,7.968e-05,2]
[401692531,1768334169723,302.07,8.263e-05,2]
[401692532,1768334170123,339.83,8.558e-05,2]
[401692533,1768334170531,377.59,8.853e-05,2]
[401692534,1768334188396,-24.04588377,0.00012329,2]
[401692535,1768334188417,-225.23355994,0.00012329,2]
[401692536,1768334190509,-160.77133971,0.00012329,2]
[401692537,1768334192492,-304.98086454,0.00012329,2]
[401692538,1768334263108,-404.7322015,0.00012272,2]
[401692539,1768334264919,-232.37590005,0.00012272,2]
[401692540,1768334272049,-257.06635604,0.00012272,2]
[401692541,1768334274233,-164.73874826,0.00012272,2]
[401692542,1768334278095,-238.72285067,0.00012272,2]
[401692543,1768334280985,-259.3108722,0.00012272,2]
[401692545,1768334287879,-154.94649835,0.00012272,2]
[401692547,1768334296992,-214.21744863,0.00012272,2]
[401692549,1768334301138,-205.14083363,0.00012272,2]
[401692550,1768334303193,-5.90405487,0.00012272,2]
[401692551,1768334303216,-206.16292862,0.000123,2]
[401692552,1768334304808,-152.3129655,0.000123,2]
[401692575,1768334415386,-158.45418383,0.00012328,2]
[401692576,1768334422200,-449.23066933,0.00012328,2]
[401692577,1768334423932,-305.395364,0.00012328,2]
[401692578,1768334426916,-247.8309821,0.00012328,2]